fUSD/lending_fUSD_20260605
["ID","MTS","AMOUNT","RATE_DAILY","PERIOD"]
[424156379,1780615853000,-151.0,0.00019547,2]
[424156377,1780615853000,-151.0,0.00019547,2]
[424156381,1780615853000,-12649.0,0.00019668,2]
[424156380,1780615853000,-151.0,0.00019547,2]
[424156376,1780615853000,-151.0,0.00019547,2]
[424156389,1780615853000,-808.0,0.0002,2]
[424156383,1780615853000,-260.25,0.0002,8]
[424156388,1780615853000,-2144.0,0.0002,2]
[424156387,1780615853000,-2153.0,0.0002,2]
[424156385,1780615853000,-744.0,0.0002,2]
[424156384,1780615853000,-465.0,0.0002,2]
[424156386,1780615853000,-319.0,0.0002,2]
[424156427,1780615853000,-2157.14243826,0.00020095,2]
[424156391,1780615853000,-507.0,0.0002,2]
[424156390,1780615853000,-1197.057938,0.0002,2]
[424156382,1780615853000,-166.66,0.00019886,2]
[424156392,1780615853000,-5288.05908078,0.0002,2]
[424156465,1780615854000,-156.59710035,0.00021705,2]
[424156471,1780615854000,-465.0,0.00022,2]
[424156472,1780615854000,-744.0,0.00022,2]
[424156466,1780615854000,-2405.55389863,0.00021739,2]
[424156467,1780615854000,-213.68721025,0.00021786,2]
[424156468,1780615854000,-166.66,0.00021855,2]
[424156461,1780615854000,-17709.0,0.00021635,2]
[424156464,1780615854000,-424.97189951,0.00021704,2]
[424156463,1780615854000,-14458.94,0.00021703,2]
[424156470,1780615854000,-5000.0,0.00021918,2]
[424156474,1780615854000,-2153.0,0.00022,2]
[424156469,1780615854000,-1007.2,0.00021918,2]
[424156476,1780615854000,-808.0,0.00022,2]
[424156489,1780615854000,-1063.72,0.00022379,2]
[424156485,1780615854000,-453.0,0.00022,2]
[424156477,1780615854000,-1197.057938,0.00022,2]
[424156475,1780615854000,-2144.0,0.00022,2]
[424156478,1780615854000,-507.0,0.00022,2]
[424156479,1780615854000,-3320.0,0.00022,2]
[424156482,1780615854000,-3112.0,0.00022,2]
[424156483,1780615854000,-837.0,0.00022,2]
[424156484,1780615854000,-1533.0,0.00022,2]
[424156481,1780615854000,-569.0,0.00022,2]
[424156487,1780615854000,-2494.55939288,0.00022287,2]
[424156486,1780615854000,-2087.47,0.00022,2]
[424156498,1780615854000,-158.38,0.00022426,2]
[424156473,1780615854000,-319.0,0.00022,2]
[424156480,1780615854000,-629.0,0.00022,2]
[424156462,1780615854000,-4350.0389023,0.00021654,2]
[424156433,1780615854000,-5777.79014369,0.00020701,2]
[424156456,1780615854000,-2319.72410669,0.00021191,2]
[424156431,1780615854000,-2236.95670847,0.00020643,2]
[424156435,1780615854000,-215.73365239,0.000209,30]
[424156432,1780615854000,-23011.3161902,0.000207,2]
[424156434,1780615854000,-26216.46038584,0.000209,30]
[424156436,1780615854000,-465.0,0.00021,2]
[424156497,1780615854000,-158.38,0.00022426,2]
[424156437,1780615854000,-744.0,0.00021,2]
[424156438,1780615854000,-319.0,0.00021,2]
[424156439,1780615854000,-2153.0,0.00021,2]
[424156440,1780615854000,-2144.0,0.00021,2]
[424156442,1780615854000,-1197.057938,0.00021,2]
[424156443,1780615854000,-507.0,0.00021,2]
[424156446,1780615854000,-569.0,0.00021,2]
[424156459,1780615854000,-58462.28141324,0.000215,2]
[424156441,1780615854000,-808.0,0.00021,2]
[424156447,1780615854000,-3112.0,0.00021,2]
[424156448,1780615854000,-837.0,0.00021,2]
[424156445,1780615854000,-629.0,0.00021,2]
[424156450,1780615854000,-199.97418508,0.00021,2]
[424156449,1780615854000,-1211.63839179,0.00021,2]
[424156451,1780615854000,-1533.0,0.00021,2]
[424156453,1780615854000,-502.62,0.00021,2]
[424156454,1780615854000,-228.50042374,0.00021059,2]
[424156458,1780615854000,-417.02,0.00021205,2]
[424156452,1780615854000,-453.0,0.00021,2]
[424156460,1780615854000,-1340.31,0.000216,2]
[424156457,1780615854000,-166.66,0.00021199,2]
[424156455,1780615854000,-2000.0,0.00021075,2]
[424156444,1780615854000,-3320.0,0.00021,2]
[424156488,1780615854000,-4134.0,0.00022353,2]
[424156494,1780615854000,-158.38,0.00022426,2]
[424156493,1780615854000,-712.06811605,0.00022407,2]
[424156525,1780615854000,-1533.0,0.00023,2]
[424156526,1780615854000,-453.0,0.00023,2]
[424156528,1780615854000,-1706.1030277,0.000231,2]
[424156529,1780615854000,-224.55419486,0.000231,2]
[424156538,1780615854000,-2000.0,0.000232,2]
[424156532,1780615854000,-2007.57150913,0.000231,2]
[424156531,1780615854000,-3817.7387093,0.000231,2]
[424156533,1780615854000,-10253.44857034,0.000231,2]
[424156536,1780615854000,-2000.0,0.00023183,2]
[424156537,1780615854000,-33250.5141,0.000232,2]
[424156535,1780615854000,-166.66,0.00023168,2]
[424156534,1780615854000,-805.46998844,0.000231,2]
[424156540,1780615854000,-162.61,0.00023288,2]
[424156552,1780615854000,-297.69,0.0002343,2]
[424156539,1780615854000,-671.576668,0.00023238,2]
[424156551,1780615854000,-12822.87,0.0002343,2]
[424156541,1780615854000,-1706.1030277,0.000233,2]
[424156544,1780615854000,-3817.7387093,0.000233,2]
[424156548,1780615854000,-2682.57183977,0.00023383,2]
[424156543,1780615854000,-365.24281566,0.000233,2]
[424156490,1780615854000,-502.62,0.000224,7]
[424156546,1780615854000,-10253.44857034,0.000233,2]
[424156547,1780615854000,-805.46998844,0.000233,2]
[424156550,1780615854000,-6029.87,0.0002343,2]
[424156542,1780615854000,-224.55419486,0.000233,2]
[424156545,1780615854000,-2007.57150913,0.000233,2]
[424156553,1780615854000,-4000.0,0.000235,2]
[424156527,1780615854000,-163.0,0.00023,7]
[424156530,1780615854000,-365.24281566,0.000231,2]
[424156549,1780615854000,-14458.94,0.00023406,7]
[424156519,1780615854000,-507.0,0.00023,2]
[424156521,1780615854000,-629.0,0.00023,2]
[424156491,1780615854000,-712.06811606,0.00022407,2]
[424156496,1780615854000,-158.38,0.00022426,2]
[424156492,1780615854000,-712.06811605,0.00022407,2]
[424156502,1780615854000,-2156.0,0.00022466,2]
[424156500,1780615854000,-158.38,0.00022426,2]
[424156501,1780615854000,-1031.91,0.00022466,2]
[424156508,1780615854000,-272.796375,0.00022834,14]
[424156509,1780615854000,-186.094154,0.00022834,14]
[424156499,1780615854000,-158.38,0.00022426,2]
[424156504,1780615854000,-36096.85512917,0.000225,2]
[424156503,1780615854000,-1988.11,0.00022466,2]
[424156505,1780615854000,-166.66,0.00022512,2]
[424156510,1780615854000,-2586.85809042,0.00022835,2]
[424156495,1780615854000,-158.38,0.00022426,2]
[424156506,1780615854000,-5777.79014369,0.0002254,2]
[424156507,1780615854000,-1124.0,0.00022621,2]
[424156520,1780615854000,-3320.0,0.00023,2]
[424156518,1780615854000,-1197.057938,0.00023,2]
[424156514,1780615854000,-2153.0,0.00023,2]
[424156522,1780615854000,-569.0,0.00023,2]
[424156515,1780615854000,-2144.0,0.00023,2]
[424156516,1780615854000,-1380.0,0.00023,2]
[424156524,1780615854000,-837.0,0.00023,2]
[424156512,1780615854000,-744.0,0.00023,2]
[424156523,1780615854000,-3112.0,0.00023,2]
[424156513,1780615854000,-319.0,0.00023,2]
[424156511,1780615854000,-465.0,0.00023,2]
[424156517,1780615854000,-808.0,0.00023,2]
[424156584,1780615855000,-3112.0,0.00024,2]
[424156582,1780615855000,-629.0,0.00024,2]
[424156578,1780615855000,-808.0,0.00024,2]
[424156580,1780615855000,-507.0,0.00024,2]
[424156579,1780615855000,-1197.057938,0.00024,2]
[424156598,1780615855000,-805.46998844,0.000241,2]
[424156586,1780615855000,-1533.0,0.00024,2]
[424156583,1780615855000,-569.0,0.00024,2]
[424156581,1780615855000,-3320.0,0.00024,2]
[424156585,1780615855000,-837.0,0.00024,2]
[424156594,1780615855000,-365.24281566,0.000241,2]
[424156592,1780615855000,-1706.1030277,0.000241,2]
[424156591,1780615855000,-500.0,0.00024099,2]
[424156590,1780615855000,-183.5963086,0.00024099,2]
[424156593,1780615855000,-224.55419486,0.000241,2]
[424156600,1780615855000,-19015.21,0.00024174,2]
[424156602,1780615855000,-30014.22,0.00024174,2]
[424156599,1780615855000,-2000.0,0.00024111,7]
[424156596,1780615855000,-2007.57150913,0.000241,2]
[424156576,1780615855000,-2153.0,0.00024,2]
[424156589,1780615855000,-500.0,0.00024099,2]
[424156588,1780615855000,-215.73365239,0.00024,7]
[424156562,1780615855000,-16419.0,0.00023799,2]
[424156577,1780615855000,-2144.0,0.00024,2]
[424156554,1780615855000,-1706.1030277,0.000236,2]
[424156555,1780615855000,-224.55419486,0.000236,2]
[424156557,1780615855000,-3817.7387093,0.000236,2]
[424156560,1780615855000,-805.46998844,0.000236,2]
[424156563,1780615855000,-1706.1030277,0.000238,2]
[424156558,1780615855000,-2007.57150913,0.000236,2]
[424156559,1780615855000,-10253.44857034,0.000236,2]
[424156561,1780615855000,-502.62,0.000236,7]
[424156556,1780615855000,-365.24281566,0.000236,2]
[424156575,1780615855000,-319.0,0.00024,2]
[424156571,1780615855000,-3169.04614476,0.000239,2]
[424156570,1780615855000,-1124.0,0.00023812,2]
[424156574,1780615855000,-744.0,0.00024,2]
[424156564,1780615855000,-224.55419486,0.000238,2]
[424156573,1780615855000,-465.0,0.00024,2]
[424156567,1780615855000,-2007.57150913,0.000238,2]
[424156568,1780615855000,-10253.44857034,0.000238,2]
[424156565,1780615855000,-365.24281566,0.000238,2]
[424156569,1780615855000,-805.46998844,0.000238,2]
[424156566,1780615855000,-3817.7387093,0.000238,2]
[424156572,1780615855000,-2781.82699784,0.00023931,2]
[424156587,1780615855000,-453.0,0.00024,2]
[424156595,1780615855000,-3817.7387093,0.000241,2]
[424156620,1780615855000,-1000.0,0.00024658,2]
[424156597,1780615855000,-10253.44857034,0.000241,2]
[424156630,1780615855000,-10253.44857034,0.00025,2]
[424156627,1780615855000,-200.0,0.00024832,2]
[424156626,1780615855000,-228.50042374,0.00024818,2]
[424156631,1780615855000,-481.07115341,0.00025,2]
[424156635,1780615855000,-2155.95086653,0.00025,2]
[424156629,1780615855000,-2007.57150913,0.00025,2]
[424156632,1780615855000,-751.8251379,0.00025,2]
[424156637,1780615855000,-1131.84142249,0.00025,2]
[424156638,1780615855000,-509.9275313,0.00025,2]
[424156648,1780615855000,-3092.24521926,0.00025,2]
[424156649,1780615855000,-7243.68629212,0.00025,2]
[424156640,1780615855000,-1813.61404091,0.00025,2]
[424156639,1780615855000,-210.82881074,0.00025,2]
[424156641,1780615855000,-3335.44327925,0.00025,2]
[424156642,1780615855000,-643.89719921,0.00025,2]
[424156647,1780615855000,-620.59546495,0.00025,2]
[424156643,1780615855000,-577.27581179,0.00025,2]
[424156644,1780615855000,-2000.0,0.00025,2]
[424156645,1780615855000,-540.0,0.00025,2]
[424156646,1780615855000,-3117.21968046,0.00025,2]
[424156601,1780615855000,-4038.33,0.00024174,2]
[424156633,1780615855000,-332.89486022,0.00025,2]
[424156634,1780615855000,-2167.06736465,0.00025,2]
[424156628,1780615855000,-3817.7387093,0.00025,2]
[424156625,1780615855000,-502.62,0.000248,7]
[424156604,1780615855000,-3762.82462446,0.0002421,2]
[424156636,1780615855000,-812.9717729,0.00025,2]
[424156605,1780615855000,-3817.7387093,0.000243,2]
[424156606,1780615855000,-2007.57150913,0.000243,2]
[424156610,1780615855000,-5777.79014369,0.0002438,2]
[424156611,1780615855000,-3762.85733694,0.00024447,2]
[424156607,1780615855000,-10253.44857034,0.000243,2]
[424156608,1780615855000,-4134.0,0.00024324,2]
[424156609,1780615855000,-4350.0389023,0.00024358,2]
[424156612,1780615855000,-2884.75459676,0.00024479,2]
[424156613,1780615855000,-3817.7387093,0.000245,2]
[424156603,1780615855000,-670.19,0.00024174,2]
[424156616,1780615855000,-258.15,0.000246,14]
[424156617,1780615855000,-298.4,0.000246,14]
[424156624,1780615855000,-10253.44857034,0.000248,2]
[424156621,1780615855000,-2087.47,0.00024789,7]
[424156623,1780615855000,-2007.57150913,0.000248,2]
[424156615,1780615855000,-10253.44857034,0.000245,2]
[424156618,1780615855000,-172.18528025,0.0002465,2]
[424156619,1780615855000,-404.13,0.00024658,2]
[424156614,1780615855000,-2007.57150913,0.000245,2]
[424156622,1780615855000,-3817.7387093,0.000248,2]
[424156668,1780615856000,-466.05324864,0.00025488,2]
[424156658,1780615856000,-214.87,0.00025014,2]
[424156669,1780615856000,-500.0,0.00025488,2]
[424156667,1780615856000,-161.91828087,0.00025397,2]
[424156666,1780615856000,-10253.44857034,0.000253,2]
[424156664,1780615856000,-3817.7387093,0.000253,2]
[424156659,1780615856000,-2991.49051684,0.00025027,2]
[424156660,1780615856000,-14458.94,0.00025109,7]
[424156657,1780615856000,-614.83612588,0.00025003,2]
[424156650,1780615856000,-845.21642591,0.00025,2]
[424156656,1780615856000,-463.81620801,0.00025,2]
[424156654,1780615856000,-858050.26235381,0.00025,2]
[424156653,1780615856000,-628.36340733,0.00025,5]
[424156663,1780615856000,-2000.0,0.0002529,2]
[424156662,1780615856000,-500.0,0.00025279,2]
[424156661,1780615856000,-434.19914845,0.00025158,2]
[424156651,1780615856000,-2235.82725069,0.00025,2]
[424156670,1780615856000,-500.0,0.00025488,2]
[424156655,1780615856000,-1537.80008228,0.00025,2]
[424156671,1780615856000,-500.0,0.00025488,2]
[424156652,1780615856000,-170.0099826,0.00025,2]
[424156673,1780615856000,-150.0,0.00025544,2]
[424156689,1780615856000,-152.0,0.00022735,7]
[424156690,1780615856000,-263.97015792,0.00025786,2]
[424156688,1780615856000,-807.14284098,0.00025786,2]
[424156682,1780615856000,-550.0,0.00025765,2]
[424156683,1780615856000,-550.0,0.00025765,2]
[424156691,1780615856000,-372.55272606,0.00025786,2]
[424156686,1780615856000,-4038.33,0.00025786,2]
[424156685,1780615856000,-19015.21,0.00025786,2]
[424156680,1780615856000,-550.0,0.00025765,2]
[424156672,1780615856000,-10253.44857034,0.000255,2]
[424156681,1780615856000,-550.0,0.00025765,2]
[424156684,1780615856000,-418.0,0.00025765,2]
[424156679,1780615856000,-550.0,0.00025765,2]
[424156678,1780615856000,-550.0,0.00025765,2]
[424156677,1780615856000,-550.0,0.00025765,2]
[424156676,1780615856000,-550.0,0.00025765,2]
[424156665,1780615856000,-2007.57150913,0.000253,2]
[424156675,1780615856000,-550.0,0.00025765,2]
[424156674,1780615856000,-417.02,0.00025644,2]
[424156687,1780615856000,-17195.40357226,0.00025786,2]
[424156692,1780615857000,-687.80269313,0.00013235,2]
[424156694,1780615857000,-500.0,0.00024099,2]
[424156698,1780615857000,-642.70277264,0.00025786,2]
[424156699,1780615857000,-93.04976236,0.000258,2]
[424156700,1780615857000,-374.26999998,0.000258,2]
[424156695,1780615857000,-575.1821864,0.00025786,2]
[424156697,1780615857000,-27.48722736,0.00025786,2]
[424156693,1780615857000,-454.0,0.00013541,2]
[424156701,1780615857000,-1263.84685955,0.000258,2]
[424156696,1780615857000,-10799.96851638,0.00025786,2]
[424156702,1780615873000,-309.66958766,0.00010094,2]
[424156703,1780615874000,2000.0,0.00029547,120]
[424156705,1780615920000,-605.39609471,0.00010094,2]
[424156706,1780615921000,152.70249457,0.000145,3]
[424156707,1780615948000,203.77984376,0.00025124,120]
[424156708,1780615974000,-500.0,0.00010094,2]
[424156709,1780615995000,331.0,0.00030136,120]
[424156710,1780616027000,-156.13247195,9.994e-05,2]
[424156711,1780616028000,15989.53506347,0.00030136,120]
[424156712,1780616103000,172.0,0.00025426,120]
[424156713,1780616195000,238.42480492,0.00010293,7]
[424156714,1780616384000,-179.24,8.885e-05,2]
[424156715,1780616437000,-156.13247195,9.989e-05,2]
[424156716,1780616491000,-425.5773788,0.00010087,2]
[424156717,1780616544000,-150.0,0.00010086,2]
[424156718,1780616598000,-505.87628078,0.00010086,2]
[424156719,1780616651000,-340.83110076,0.00010086,2]
[424156721,1780616665000,218.55847566,0.0002512,120]
[424156720,1780616665000,171.18672706,0.0002512,120]
[424156722,1780616679000,1301.75,0.00030082,120]
[424156723,1780616705000,-156.13247195,9.985e-05,2]
[424156724,1780616758000,-160.0,0.00010084,2]
[424156725,1780616786000,150.0,0.00030137,120]
[424156726,1780616795000,150.0,0.00012091,7]
[424156727,1780616811000,-173.37358556,0.00010083,2]
[424156728,1780616865000,-500.0,0.00010083,2]
[424156729,1780616904000,168.43380125,0.00024387,120]
[424156730,1780616946000,2000.0,0.00030136,120]
[424156734,1780617031000,-186.2882097,0.00010142,2]
[424156736,1780617031000,-160.0,0.00010185,2]
[424156735,1780617031000,-229.0,0.00010184,2]
[424156732,1780617031000,-250.0,0.00010084,2]
[424156737,1780617031000,-738.78171069,0.00010217,2]
[424156733,1780617031000,-186.2882097,0.00010084,2]
[424156731,1780617031000,-156.00273008,0.00010083,2]
[424156738,1780617032000,-1261.21828931,0.00010217,2]
[424156741,1780617032000,-150.99,0.00010285,2]
[424156739,1780617032000,-1200.0,0.00010284,2]
[424156740,1780617032000,-229.0,0.00010285,2]
[424156775,1780617033000,-1852.42,0.00010493,2]
[424156783,1780617033000,-229.0,0.00010789,2]
[424156785,1780617033000,-1464.67,0.00010889,2]
[424156788,1780617033000,-150.0,0.00010959,2]
[424156779,1780617033000,-229.0,0.00010587,2]
[424156789,1780617033000,-150.0,0.00010959,2]
[424156781,1780617033000,-1464.67,0.0001063,2]
[424156790,1780617033000,-229.0,0.0001099,2]
[424156787,1780617033000,-150.0,0.00010958,2]
[424156777,1780617033000,-1000.0,0.00010517,2]
[424156773,1780617033000,-229.0,0.00010486,2]
[424156771,1780617033000,-2903.61,0.00010475,2]
[424156769,1780617033000,-1369.39,0.00010419,2]
[424156761,1780617033000,-3763.87,0.00010337,2]
[424156751,1780617033000,-354.11339654,0.00010291,2]
[424156767,1780617033000,-200.0,0.00010404,2]
[424156755,1780617033000,-807.14,0.00010292,2]
[424156753,1780617033000,-9999.99,0.00010292,2]
[424156757,1780617033000,-164.92,0.00010306,2]
[424156765,1780617033000,-229.0,0.00010385,2]
[424156749,1780617033000,-627.82298658,0.00010291,2]
[424156763,1780617033000,-1464.67,0.0001037,2]
[424156747,1780617033000,-500.0,0.00010291,2]
[424156743,1780617033000,-300.0,0.00010291,2]
[424156745,1780617033000,-238.58177053,0.00010291,2]
[424156744,1780617033000,-300.0,0.00010291,2]
[424156742,1780617033000,-299.99,0.00010285,2]
[424156782,1780617033000,-229.0,0.00010688,2]
[424156786,1780617033000,-229.0,0.0001089,2]
[424156759,1780617033000,-300.0,0.00010336,2]
[424156791,1780617033000,-61539.73,0.00011059,2]
[424156784,1780617033000,-1201.65249753,0.0001086,2]
[424156818,1780617033000,-211.59670128,0.00012782,2]
[424156820,1780617033000,-86597.00007109,0.00012792,2]
[424156817,1780617033000,-2000.0,0.00012771,2]
[424156816,1780617033000,-2500.0,0.00012692,2]
[424156812,1780617033000,-500.0,0.00012647,2]
[424156813,1780617033000,-233.94091005,0.00012692,2]
[424156809,1780617033000,-500.0,0.00012329,2]
[424156811,1780617033000,-2351.0,0.00012444,2]
[424156808,1780617033000,-1301.75,0.00012329,2]
[424156807,1780617033000,-434.19914845,0.0001209,2]
[424156810,1780617033000,-164.92,0.00012368,2]
[424156806,1780617033000,-500.0,0.00012055,2]
[424156805,1780617033000,-430.46,0.00012055,2]
[424156819,1780617033000,-1817.50446478,0.00012789,2]
[424156803,1780617033000,-2000.0,0.00011494,2]
[424156814,1780617033000,-7600.79161205,0.00012692,2]
[424156795,1780617033000,-250.0,0.00011091,2]
[424156796,1780617033000,-193.0,0.00011092,2]
[424156798,1780617033000,-749.38,0.00011301,2]
[424156801,1780617033000,-164.92,0.00011337,2]
[424156792,1780617033000,-3107.9,0.00011085,2]
[424156793,1780617033000,-231.0,0.00011091,2]
[424156802,1780617033000,-1464.67,0.00011407,2]
[424156815,1780617033000,-4000.0,0.00012692,2]
[424156800,1780617033000,-300.0,0.00011317,2]
[424156804,1780617033000,-255.0,0.00011999,2]
[424156794,1780617033000,-250.0,0.00011091,2]
[424156797,1780617033000,-1464.67,0.00011148,2]
[424156799,1780617033000,-1680.0,0.00011312,2]
[424156821,1780617034000,-353.32,0.00012792,2]
[424156856,1780617038000,-500.0,0.00013698,2]
[424156854,1780617038000,-500.0,0.00013698,2]
[424156855,1780617038000,-500.0,0.00013698,2]
[424156859,1780617038000,-336.66,0.00013698,2]
[424156858,1780617038000,-500.0,0.00013698,2]
[424156860,1780617038000,-500.0,0.00013698,2]
[424156864,1780617038000,-500.0,0.00013698,2]
[424156862,1780617038000,-500.0,0.00013698,2]
[424156861,1780617038000,-500.0,0.00013698,2]
[424156852,1780617038000,-500.0,0.00013698,2]
[424156876,1780617038000,-1048.99843783,0.0001399,2]
[424156868,1780617038000,-500.0,0.00013698,2]
[424156867,1780617038000,-500.0,0.00013698,2]
[424156865,1780617038000,-500.0,0.00013698,2]
[424156873,1780617038000,-502.61,0.000137,2]
[424156871,1780617038000,-200.0,0.00013699,2]
[424156869,1780617038000,-538.25220633,0.00013698,2]
[424156879,1780617038000,-2000.0,0.00014048,2]
[424156875,1780617038000,-166.66,0.00013973,2]
[424156874,1780617038000,-166.66,0.00013836,2]
[424156872,1780617038000,-166.66,0.00013699,2]
[424156847,1780617038000,-500.0,0.00013698,2]
[424156866,1780617038000,-500.0,0.00013698,2]
[424156857,1780617038000,-500.0,0.00013698,2]
[424156845,1780617038000,-500.0,0.00013698,2]
[424156851,1780617038000,-500.0,0.00013698,2]
[424156827,1780617038000,-151.0,0.00012889,2]
[424156826,1780617038000,-1413049.67992891,0.00012792,2]
[424156831,1780617038000,-2000.0,0.00013341,2]
[424156829,1780617038000,-433.0,0.00013139,2]
[424156828,1780617038000,-151.0,0.00012889,2]
[424156830,1780617038000,-250.0,0.00013323,2]
[424156832,1780617038000,-33250.5141,0.00013341,2]
[424156833,1780617038000,-164.92,0.00013398,2]
[424156835,1780617038000,-453.0,0.00013541,2]
[424156834,1780617038000,-452.0,0.00013541,2]
[424156877,1780617038000,-7600.79161202,0.00013993,2]
[424156853,1780617038000,-500.0,0.00013698,2]
[424156836,1780617038000,-448.0,0.00013541,2]
[424156837,1780617038000,-3292.0,0.00013688,2]
[424156839,1780617038000,-500.0,0.00013698,2]
[424156841,1780617038000,-217.8860636,0.00013698,2]
[424156840,1780617038000,-500.0,0.00013698,2]
[424156843,1780617038000,-500.0,0.00013698,2]
[424156844,1780617038000,-500.0,0.00013698,2]
[424156842,1780617038000,-500.0,0.00013698,2]
[424156846,1780617038000,-347.17711318,0.00013698,2]
[424156850,1780617038000,-500.0,0.00013698,2]
[424156848,1780617038000,-500.0,0.00013698,2]
[424156849,1780617038000,-500.0,0.00013698,2]
[424156838,1780617038000,-183.5963086,0.00013698,2]
[424156870,1780617038000,-152.06444735,0.00013698,2]
[424156863,1780617038000,-500.0,0.00013698,2]
[424156880,1780617038000,-166.66,0.0001411,2]
[424156923,1780617038000,-2129.0,0.00017248,2]
[424156924,1780617038000,-1798.80895522,0.00017351,2]
[424156922,1780617038000,-1734.62772924,0.00016803,2]
[424156911,1780617038000,-538.68867808,0.000162,2]
[424156913,1780617038000,-1672.7364795,0.00016255,2]
[424156917,1780617038000,-233.94091002,0.00016593,2]
[424156915,1780617038000,-871.4,0.00016438,2]
[424156918,1780617038000,-7600.79161202,0.00016595,2]
[424156916,1780617038000,-6453.0,0.00016562,2]
[424156925,1780617038000,-500.0,0.0001751,2]
[424156927,1780617038000,-1865.36488656,0.00017899,2]
[424156920,1780617038000,-168.16,0.00016712,2]
[424156928,1780617038000,-186.094154,0.00017989,2]
[424156933,1780617038000,-1934.38338736,0.00018447,2]
[424156929,1780617038000,-350.0,0.00018,2]
[424156931,1780617038000,-89757.17,0.00018356,2]
[424156926,1780617038000,-7600.79161202,0.00017896,2]
[424156935,1780617038000,-2005.9555727,0.00018995,2]
[424156934,1780617038000,-2236.0,0.00018891,2]
[424156936,1780617038000,-18471.41924797,0.00019,2]
[424156938,1780617038000,-1254.0,0.00019452,2]
[424156937,1780617038000,-7600.79161202,0.00019196,2]
[424156939,1780617038000,-151.0,0.00019543,2]
[424156878,1780617038000,-250.0,0.00014,2]
[424156930,1780617038000,-9035.0,0.00018219,2]
[424156921,1780617038000,-1301.75,0.00016767,2]
[424156932,1780617038000,-4221.2,0.0001841,2]
[424156909,1780617038000,-1414.84,0.00016116,2]
[424156882,1780617038000,-166.66,0.00014384,2]
[424156919,1780617038000,-363.0,0.00016712,2]
[424156881,1780617038000,-166.66,0.00014247,2]
[424156892,1780617038000,-7600.79161202,0.00015294,2]
[424156884,1780617038000,-164.92,0.00014429,2]
[424156883,1780617038000,-736.0,0.00014388,2]
[424156890,1780617038000,-871.4,0.00015068,2]
[424156889,1780617038000,-720.0,0.00015068,2]
[424156887,1780617038000,-305.24958109,0.000147,2]
[424156888,1780617038000,-4609.0,0.00015057,2]
[424156886,1780617038000,-500.0,0.000147,2]
[424156885,1780617038000,-1500.0,0.00014611,2]
[424156891,1780617038000,-1555.5,0.00015159,2]
[424156893,1780617038000,-9999.99,0.0001531,2]
[424156905,1780617038000,-538.68867808,0.000161,2]
[424156899,1780617038000,-1252.0,0.00015757,2]
[424156900,1780617038000,-720.0,0.0001589,2]
[424156907,1780617038000,-9999.99,0.00016116,2]
[424156902,1780617038000,-300.0,0.00016,2]
[424156898,1780617038000,-1613.0535,0.00015707,2]
[424156894,1780617038000,-14374.7,0.0001531,2]
[424156897,1780617038000,-3107.9,0.00015518,2]
[424156896,1780617038000,-164.92,0.0001546,2]
[424156895,1780617038000,-2000.0,0.00015325,2]
[424156903,1780617038000,-538.68867808,0.00016,2]
[424156982,1780617039000,-151.0,0.00019545,2]
[424156977,1780617039000,-151.0,0.00019545,2]
[424156983,1780617039000,-151.0,0.00019545,2]
[424156975,1780617039000,-151.0,0.00019545,2]